Workbook

Sheet Opening Document
B2: UPON OPENING DOCUMENT…
B27: IF THE RED BANNER OCCURS….
B39: 1. DOWNLOAD DOCUMENT AND SAVE TO DESKTOP
B40: 2. RIGHT CLICK, PROPERTIES
B53: 3. MAKE SURE THERE IS A CHECK IN THE UNBLOCK BOX, CLICK APPLY, CLICK OK
B54: 4. REOPEN EXCEL WORKBOOK
B55: 5. IF NEEDED, ENABLE EDITING, ENABLE CONTENT

Sheet Budget Summary
A2: Attachment B - Budget Worksheets
A19: FFY 2024 State Traffic Safety Information System Improvements Grant, 405(c) Funding
A21: Cost Categories | B21: Federal Costs | C21: Match Costs | D21: Total Costs
A24: Personnel Costs | B24: ='Budget Detail'!E16 -> 0 | C24: ='Budget Detail'!F16 -> 0 | D24: ='Budget Detail'!G16 -> 0
A26: Fringe Benefit Costs | B26: ='Budget Detail'!E26 -> 0 | C26: ='Budget Detail'!F26 -> 0 | D26: ='Budget Detail'!G26 -> 0
A28: Indirect Costs | B28: ='Budget Detail'!E36 -> 0 | C28: ='Budget Detail'!F36 -> 0 | D28: ='Budget Detail'!G36 -> 0
A30: Consultants/Contractors Costs | B30: ='Budget Detail'!E46 -> 0 | C30: ='Budget Detail'!F46 -> 0 | D30: ='Budget Detail'!G46 -> 0
A32: Equipment Costs | B32: ='Budget Detail'!E56 -> 0 | C32: ='Budget Detail'!F56 -> 0 | D32: ='Budget Detail'!G56 -> 0
A34: Travel Costs | B34: ='Budget Detail'!E66 -> 0 | C34: ='Budget Detail'!F66 -> 0 | D34: ='Budget Detail'!G66 -> 0
A36: Supplies Costs | B36: ='Budget Detail'!E76 -> 0 | C36: ='Budget Detail'!F76 -> 0 | D36: ='Budget Detail'!G76 -> 0
A38: Other Costs | B38: ='Budget Detail'!E86 -> 0 | C38: ='Budget Detail'!F86 -> 0 | D38: ='Budget Detail'!G86 -> 0
A40: Total Costs | B40: =B24+B26+B28+B30+B34+B32+B36+B38 -> 0 | C40: =C24+C26+C28+C30+C34+C32+C36+C38 -> 0 | D40: =D24+D26+D28+D30+D34+D32+D36+D38 -> 0
A43: Name of Applicant Organization

Sheet Budget Detail
A1: Executive Office of Public Safety and Security
A2: Office of Grants and Research
A3: FFY 2024 State Traffic Safety Information System Improvements Grant, 405(c) Funding
A4: =CONCATENATE("Attachment B - Budget Worksheets ",'Budget Summary'!B43) -> Attachment B - Budget Worksheets
A7: Non-EOPSS state agency subrecipients must provide a minimum of 20% match of the total project cost (e.g., if the total project is $100,000, OGR will provide up to $80,000 and the state agency must provide at least $20,000 match). Match may be (state, not federal) funding directly provided by the subrecipient for the project and/or (state, not federal) resources provided by the subrecipient that directly benefit the project. The match must be: 1. An allowable expense(s) per the AGF, 2. Incurred during the same period as the project; 3. Auditable and documentable expenditures. The source and amount of match must be detailed in the applicant's application (Budget Overview) and reported monthly, along with project expenditures, to OGR. The match expenses may not be utilized as match for any other federally funded project. For more information on what constitutes match, please review 2 CFR Part 200.306 (Cost sharing or matching).
A9: PERSONNEL: Full or part-time regular salaried employees working on the grant. At a minimum, reporting will need to detail employee name, amount of time projected to be spent working on the grant, and the pay rate. Provide a brief description to show how the calculation was reached. Overtime is not an allowable cost under this grant program. Click the "Add Personnel" button to add a new record. To delete an unwanted record, click into the cell that you want to delete, and click the "Delete Row" button.
A11: Employee Name | B11: Pay Rate | C11: Quantity | D11: Description | E11: Cash Expenditures | F11: Match Expenditures | G11: Total Expenditures
A12: Example: Sue Smith | B12: 23.4875 | C12: 300 | D12: Enter activities performed by Personnel here. | E12: =IF(G12="","",G12-F12) -> 7046.25 | F12: 0 | G12: =IF(B12="","",ROUND(B12,4)*ROUND(C12,2)) -> 7046.25
A13: Example: Tracey Thomas | B13: 1730.77 | C13: 6 | D13: $1730.77 per pay period x 6 pay periods. Reporting $5,000 match for T. Thomas expenses. | E13: =IF(G13="","",G13-F13) -> 5384.62 | F13: 5000 | G13: =IF(B13="","",ROUND(B13,4)*ROUND(C13,2)) -> 10384.62
G14: =IF(B14="","",ROUND(ROUND(B14,4)*ROUND(C14,4),2)) -> 
G15: =IF(B15="","",ROUND(ROUND(B15,4)*ROUND(C15,4),2)) -> 
A16: Subtotal(s): | E16: =SUM(OFFSET(Personnel,5,4):OFFSET(Fringe,-4,4)) -> 0 | F16: =SUM(OFFSET(Personnel,5,5):OFFSET(Fringe,-4,5)) -> 0 | G16: =SUM(OFFSET(Personnel,5,6):OFFSET(Fringe,-4,6)) -> 0
A19: FRINGE AND PAYROLL TAX: Eligible costs include the employer share of the following: life insurance, health insurance, social security costs, pension costs, unemployment insurance costs, workers compensation insurance, payroll taxes, FMLA. Cost amounts for direct fringe benefits can be either actual costs or rates per employee calculated by the fiscal or human resource unit in your organization (rate computations must be included). A copy of the approved rate agreement MUST be included with the application response. Click the "Add Fringe" button to add a new record. To delete an unwanted record, click into the cell that you want to delete, and click the "Delete Row" button.
A21: Employee Name | B21: Wages Applied to Fringe | C21: Contract Fringe Rate | D21: Description | E21: Cash Expenditures | F21: Match Expenditures | G21: Total Expenditures
A22: Example: Sue Smith | B22: 7046.25 | C22: 0.21 | D22: Per the fringe rate agreement, find the applicable cost categories to apply fringe to. In this example, the applicable cost category is "Personnel." Take Sue Smith's total wages reported on this worksheet under the "Personnel" section and multiply by the federally approved fringe rate or the fringe rate that was proposed and approved by OGR in the application process. ($7,046.25 * 21%). Match expenditures should be in relation to the match in the applicable category. | E22: =IF(G22="","",G22-F22) -> 1479.7125 | G22: =IF(B22="","",ROUND(B22,4)*ROUND(C22,4)) -> 1479.7125
A23: Example: Tracey Thomas | B23: 10384.62 | C23: 0.1 | D23: Per the fringe rate agreement, find the applicable cost categories to apply fringe to. In this example, the applicable cost category is "Personnel." Take Tracey Thomas' total wages reported on this worksheet under the "Personnel" section and multiply by the breakout of what rates are being charged per eligible cost. (7.5% - health insurance, 2% - life insurance, .5% - workers compensation). | E23: 538.462 | F23: 500 | G23: =IF(B23="","",ROUND(B23,4)*ROUND(C23,4)) -> 1038.462
G24: =IF(B24="","",ROUND(ROUND(B24,4)*ROUND(C24,8),2)) -> 
G25: =IF(B25="","",ROUND(ROUND(B25,4)*ROUND(C25,8),2)) -> 
A26: Subtotal(s): | E26: =SUM(OFFSET(Fringe,5,4):OFFSET(Indirect,-4,4)) -> 0 | F26: =SUM(OFFSET(Fringe,5,5):OFFSET(Indirect,-4,5)) -> 0 | G26: =SUM(OFFSET(Fringe,5,6):OFFSET(Indirect,-4,6)) -> 0
A29: INDIRECT COSTS: Applicants that want to charge indirect costs through the use of an indirect cost rate may use a federally approved indirect cost rate agreement. A copy of the currently signed agreement MUST be submitted with the application. Applicants that do not currently have a negotiated (including provisional) indirect cost rate may elect to charge a de minimis rate of 10% of modified total direct costs. If the applicant’s accounting system permits, indirect costs may instead be allocated in the budget, including the category “other” if the costs being identified do not fit into one of the direct cost categories. For more information, see Title 2 CFR Part 200. Click the "Add Indirect" button to add a new record. To delete an unwanted record, click into the cell that you want to delete, and click the "Delete Row" button.
A31: Employee Name | B31: Expenses Applied to Indirect Rate | C31: Contract Indirect Rate | D31: Description | E31: Cash Expenditures | F31: Match Expenditures | G31: Total Expenditures
A32: Example: Sue Smith | B32: 8525.96 | C32: 0.18 | D32: The federally approved rate of "18%" times allowable expenses per contract. If allowable expenses are all categories, take the sum of all categories and multiply by the federally approved rate. If allowable expenses are only Personnel and Fringe like in this example, take the approved rate and multiply by the sum of Personnel and Fringe total costs associated with Sue Smith. (18% * (7046.25 + 1479.71)). | E32: =IF(G32="","",G32-F32) -> 1534.6728 | F32: 0 | G32: =IF(B32="","",ROUND(B32,4)*ROUND(C32,4)) -> 1534.6728
A33: Example: Tracey Thomas | B33: 11423.08 | C33: 0.18 | D33: The federally approved rate of "18%" times allowable expenses per contract. If allowable expenses are all categories, take the sum of all categories and multiply by the federally approved rate. If allowable expenses are only Personnel and Fringe like in this example, take the approved rate and multiply by the sum of Personnel and Fringe total costs associated with Tracey Thomas. (18% * (10,384.62 + 1,038.46)). | E33: 1066.1544 | F33: 990 | G33: =IF(B33="","",ROUND(B33,4)*ROUND(C33,4)) -> 2056.1544
G34: =IF(B34="","",ROUND(ROUND(B34,4)*ROUND(C34,8),2)) -> 
G35: =IF(B35="","",ROUND(ROUND(B35,4)*ROUND(C35,8),2)) -> 
A36: Subtotal(s): | E36: =SUM(OFFSET(Indirect,5,4):OFFSET(Contractors,-4,4)) -> 0 | F36: =SUM(OFFSET(Indirect,5,5):OFFSET(Contractors,-4,5)) -> 0 | G36: =SUM(OFFSET(Indirect,5,6):OFFSET(Contractors,-4,6)) -> 0
A39: CONTRACTORS/CONSULTANTS: List each subcontractor and/or consultant along with their rate. The maximum rate for consultants is $650 for an eight-hour day or $81.25 per hour (excluding travel and subsistence costs). Any request for compensation over $650 per day hour day or $81.25 per hour requires prior written approval by OGR. This rate is the exception not the rule. Click the "Add C/C" button to add a new record. To delete an unwanted record, click into the cell that you want to delete, and click the "Delete Row" button.
A41: Contractors/Consultants Name | B41: Pay Rate | C41: Quantity | D41: Description | E41: Cash Expenditures | F41: Match Expenditures | G41: Total Expenditures
A42: Example: JJ Counseling | B42: 200 | C42: 24 | D42: Enter activities performed by Contractors/Consultants here. | E42: =IF(G42="","",G42-F42) -> 2000 | F42: 2800 | G42: =IF(B42="","",ROUND(B42,4)*ROUND(C42,2)) -> 4800
A43: Example: B & B Tech Support | B43: 45 | C43: 210 | D43: Installation of database and training; $45 per hour x 210 hours | E43: =IF(G43="","",G43-F43) -> 9450 | F43: 0 | G43: =IF(B43="","",ROUND(B43,4)*ROUND(C43,2)) -> 9450
E44: =IF(G44="","",G44-F44) ->  | G44: =IF(B44="","",ROUND(ROUND(B44,4)*ROUND(C44,4),2)) -> 
E45: =IF(G45="","",G45-F45) ->  | G45: =IF(B45="","",ROUND(ROUND(B45,4)*ROUND(C45,4),2)) -> 
A46: Subtotal(s): | E46: =SUM(OFFSET(Contractors,5,4):OFFSET(Equipment,-4,4)) -> 0 | F46: =SUM(OFFSET(Contractors,5,5):OFFSET(Equipment,-4,5)) -> 0 | G46: =SUM(OFFSET(Contractors,5,6):OFFSET(Equipment,-4,6)) -> 0
A49: EQUIPMENT: List the purchases of tangible non-expendable personal property having a useful life of more than one year. Equipment must be directly related to the program implementation. Examples of equipment that will NOT be approved under this grant program include, but are not limited to: motor vehicles, radar detectors, lidar, security cameras, speed radar signs or trailers, portable or vehicle radios, and variable message boards. Separately purchased warranty/service plan expenses are not an allowable cost under this grant program. Click the "Add Equipment" button to add a new record. To delete an unwanted record, click into the cell that you want to delete, and click the "Delete Row" button.
A51: Equipment | B51: Cost | C51: Quantity | D51: Description | E51: Cash Expenditures | F51: Match Expenditures | G51: Total Expenditures
A52: Example: Laptop | B52: 1200 | C52: 1 | D52: Describe Equipment and purpose here. | E52: =IF(G52="","",G52-F52) -> 1075 | F52: 125 | G52: =IF(B52="","",ROUND(B52,4)*ROUND(C52,2)) -> 1200
A53: Example: Computer Keyboard | B53: 50 | C53: 3 | D53: Replacement keyboard, IBM part #872021. (3) keyboards at $50/each | E53: 150 | F53: 0 | G53: =IF(B53="","",ROUND(B53,4)*ROUND(C53,2)) -> 150
E54: =IF(G54="","",G54-F54) ->  | G54: =IF(B54="","",ROUND(ROUND(B54,4)*ROUND(C54,4),2)) -> 
G55: =IF(B55="","",ROUND(ROUND(B55,4)*ROUND(C55,4),2)) -> 
A56: Subtotal(s): | E56: =SUM(OFFSET(Equipment,5,4):OFFSET(Travel,-4,4)) -> 0 | F56: =SUM(OFFSET(Equipment,5,5):OFFSET(Travel,-4,5)) -> 0 | G56: =SUM(OFFSET(Equipment,5,6):OFFSET(Travel,-4,6)) -> 0
A59: TRAVEL: This must be travel directly related to the purpose of the grant. In-state travel costs associated with the grant shall include mileage rates not in excess of $0.62 per mile, as well as the actual costs of tolls and parking. No grant funds may be spent for out of state conference fees, out of state travel or out of state lodging without prior written approval from OGR. Click the "Add Travel" button to add a new record. To delete an unwanted record, click into the cell that you want to delete, and click the "Delete Row" button.
A61: Employee Name | B61: Rate | C61: Quantity | D61: Description | E61: Cash Expenditures | F61: Match Expenditures | G61: Total Expenditures
A62: Example: Sue Smith | B62: 0.62 | C62: 200 | D62: Describe Travel activities here. (Ex. Reimbursement of 200 miles driven from Boston to Springfield) | E62: =IF(G62="","",G62-F62) -> 124 | F62: 0 | G62: =IF(B62="","",ROUND(B62,4)*ROUND(C62,2)) -> 124
A63: Example: Tracey Thomas | B63: 0.62 | C63: 500 | D63: Travel related to grant; $0.62/mile x 500 miles | E63: 310 | F63: 0 | G63: =IF(B63="","",ROUND(B63,4)*ROUND(C63,2)) -> 310
G64: =IF(B64="","",ROUND(ROUND(B64,4)*ROUND(C64,4),2)) -> 
G65: =IF(B65="","",ROUND(ROUND(B65,4)*ROUND(C65,4),2)) -> 
A66: Subtotal(s): | E66: =SUM(OFFSET(Travel,5,4):OFFSET(Supplies,-4,4)) -> 0 | F66: =SUM(OFFSET(Travel,5,5):OFFSET(Supplies,-4,5)) -> 0 | G66: =SUM(OFFSET(Travel,5,6):OFFSET(Supplies,-4,6)) -> 0
A69: SUPPLIES: List the purchases of supplies required for program (pens, pencils, postage, training materials, copying paper, and other expendable items such as books, ink, etc.). Click the "Add Supplies" button to add a new record. To delete an unwanted record, click into the cell that you want to delete, and click the "Delete Row" button.
A71: Supplies/Company | B71: Cost | C71: Quantity | D71: Description | E71: Cash Expenditures | F71: Match Expenditures | G71: Total Expenditures
A72: Example: Copy Paper | B72: 50 | C72: 4 | D72: Describe Supplies purchase here. | E72: =IF(G72="","",G72-F72) -> 100 | F72: 100 | G72: =IF(B72="","",ROUND(B72,4)*ROUND(C72,2)) -> 200
A73: Example: ABC Office Supply | B73: 75 | C73: 1 | D73: 1 lot of office supplies (pens, staples, paperclips), $75/lot | E73: 75 | F73: 0 | G73: =IF(B73="","",ROUND(B73,4)*ROUND(C73,2)) -> 75
E74: =IF(G74="","",G74-F74) ->  | G74: =IF(B74="","",ROUND(ROUND(B74,4)*ROUND(C74,4),2)) -> 
G75: =IF(B75="","",ROUND(ROUND(B75,4)*ROUND(C75,4),2)) -> 
A76: Subtotal(s): | E76: =SUM(OFFSET(Supplies,5,4):OFFSET(Other,-4,4)) -> 0 | F76: =SUM(OFFSET(Supplies,5,5):OFFSET(Other,-4,5)) -> 0 | G76: =SUM(OFFSET(Supplies,5,6):OFFSET(Other,-4,6)) -> 0
A79: OTHER: List the purchases for other expenses not applicable in the aforementioned that were incurred due to this program implementation (e.g., telephone costs, training material costs). Click the "Add Other" button to add a new record. To delete an unwanted record, click into the cell that you want to delete, and click the "Delete Row" button.
A81: Item/Company | B81: Cost | C81: Quantity | D81: Description | E81: Cash Expenditures | F81: Match Expenditures | G81: Total Expenditures
A82: Example: Telephone | B82: 65 | C82: 6 | D82: Describe Other expenses here. | E82: =IF(G82="","",G82-F82) -> 390 | F82: 0 | G82: =IF(B82="","",ROUND(B82,4)*ROUND(C82,2)) -> 390
A83: Example: Heat | B83: 6000 | C83: 0.25 | D83: Projected total bill for office during grant period is $6,000.00; this program is 1/4 of office space | E83: 1500 | F83: 0 | G83: =IF(B83="","",ROUND(B83,4)*ROUND(C83,2)) -> 1500
G84: =IF(B84="","",ROUND(ROUND(B84,4)*ROUND(C84,4),2)) -> 
G85: =IF(B85="","",ROUND(ROUND(B85,4)*ROUND(C85,4),2)) -> 
A86: Subtotal(s): | E86: =SUM(OFFSET(Other,5,4):OFFSET(GrandTotal,-3,4)) -> 0 | F86: =SUM(OFFSET(Other,5,5):OFFSET(GrandTotal,-3,5)) -> 0 | G86: =SUM(OFFSET(Other,5,6):OFFSET(GrandTotal,-3,6)) -> 0
A88: Grand Total(s): | E88: =ROUND(SUM(E16+E26+E36+E46+E56+E66+E76+E86),2) -> 0 | F88: =ROUND(SUM(F16+F26+F36+F46+F56+F66+F76+F86),2) -> 0 | G88: =ROUND(SUM(G16+G26+G36+G46+G56+G66+G76+G86),2) -> 0
A89: Subtotals reported on this form will auto-populate on the Budget Summary Sheet. Please take a moment to review that all numbers are correct on both sheets.
